fUST/lending_fUST_20250901
["ID","MTS","AMOUNT","RATE_DAILY","PERIOD"]
[382548367,1756664941244,606.2783057,0.00016697,2]
[382548368,1756664943466,480.0,0.00016697,2]
[382548369,1756664943602,300.0,0.00016697,2]
[382548370,1756664945102,1193.78,0.00016697,2]
[382548371,1756664946225,480.0,0.00016697,2]
[382548372,1756664947671,480.0,0.00016697,2]
[382548373,1756664948331,480.0,0.00016697,2]
[382548374,1756664952458,480.0,0.00016697,2]
[382548375,1756664952491,499.9416943,0.00016697,2]
[382548376,1756664952516,370.9983057,0.00016697,2]
[382548377,1756664955057,4223.74,0.00016697,2]
[382548378,1756664957940,405.2616943,0.00016697,2]
[382548379,1756664957963,547.5183057,0.00016697,2]
[382548380,1756664958687,480.0,0.00016697,2]
[382548381,1756664959186,480.0,0.00016696,2]
[382548382,1756664961311,879.28,0.00016697,2]
[382548383,1756664966795,480.0,0.00016697,2]
[382548384,1756664969421,480.0,0.00016697,2]
[382548385,1756664969582,1653.2016943,0.00016697,2]
[382548386,1756664969605,3346.7983057,0.00016697,2]
[382548387,1756664970494,1653.2016943,0.00015793,2]
[382548388,1756664970517,1731.4860631,0.00015793,2]
[382548389,1756664971234,480.0,0.00016697,2]
[382548390,1756664976783,631.41,0.00016696,2]
[382548391,1756664977094,1698.61,0.00016697,2]
[382548392,1756664977340,480.0,0.00016697,2]
[382548393,1756664977453,5000.0,0.00016697,2]
[382548394,1756664977934,1580.217173,0.00015793,2]
[382548395,1756664978221,129.772827,0.00016697,2]
[382548396,1756664978245,929.127173,0.00016697,2]
[382548397,1756664978940,480.0,0.00016697,2]
[382548398,1756664981663,238.65494765,0.00016697,2]
[382548399,1756664983711,480.0,0.00016697,2]
[382548400,1756664984520,2733.82,0.00016697,2]
[382548401,1756664984935,480.0,0.00016697,2]
[382548402,1756664987753,480.0,0.00016697,2]
[382548403,1756664991745,866.26,0.00016697,2]
[382548404,1756664994784,559.46,0.00016697,2]
[382548405,1756664995160,534.55,0.00016696,2]
[382548406,1756665001163,348.2439369,0.00016697,2]
[382548407,1756665001189,131.7560631,0.00016697,2]
[382548408,1756665002668,300.0,0.00016697,2]
[382548409,1756665003239,1200.0,0.00016697,2]
[382548410,1756665003424,480.0,0.00016697,2]
[382548411,1756665004240,480.0,0.00016697,2]
[382548412,1756665004396,480.0,0.00016696,2]
[382548413,1756665005489,1662.33,0.00016697,2]
[382548414,1756665007307,265.9139369,0.00016697,2]
[382548415,1756665007332,847.1060631,0.00016697,2]
[382548416,1756665007837,480.0,0.00016696,2]
[382548417,1756665009443,480.0,0.00016697,2]
[382548418,1756665009811,651.86,0.00016697,2]
[382548419,1756665014249,480.0,0.00016697,2]
[382548420,1756665014391,480.0,0.00016697,2]
[382548421,1756665014986,663.12,0.00016697,2]
[382548422,1756665016040,480.0,0.00016697,2]
[382548423,1756665016952,437.9139369,0.00016697,2]
[382548424,1756665016977,153.8160631,0.00016697,2]
[382548425,1756665019148,480.0,0.00016697,2]
[382548426,1756665020768,871.06,0.00016697,2]
[382548427,1756665021182,597.54,0.00016697,2]
[382548428,1756665021927,578.72,0.00016696,2]
[382548429,1756665022358,480.0,0.00016697,2]
[382548430,1756665023292,1838.8639369,0.00016697,2]
[382548431,1756665023318,3161.1360631,0.00016697,2]
[382548432,1756665025922,480.0,0.00016697,2]
[382548433,1756665026225,480.0,0.00016697,2]
[382548434,1756665027065,480.0,0.00016697,2]
[382548435,1756665027848,398.8639369,0.00016697,2]
[382548436,1756665027873,663.7160631,0.00016697,2]
[382548437,1756665029776,931.05,0.00016697,2]
[382548438,1756665031118,480.0,0.00016697,2]
[382548439,1756665031293,1081.73,0.00016697,2]
[382548443,1756665031792,347.7394083,0.00016697,2]
[382548445,1756665031879,480.0,0.00016697,2]
[382548446,1756665032257,-654.24,0.00016697,2]
[382548447,1756665034665,692.37,0.00016697,2]
[382548448,1756665035826,323.3945286,0.00016697,2]
[382548449,1756665035851,156.6054714,0.00016697,2]
[382548476,1756665038049,-4345.76,0.00016697,2]
[382548478,1756665038058,-21156.11701721,0.00016698,2]
[382548481,1756665038068,-184.0,0.0001672,2]
[382548482,1756665038078,-203.83846135,0.00016771,2]
[382548485,1756665038088,-151.0,0.00016787,2]
[382548486,1756665038098,-172.53,0.00016787,3]
[382548488,1756665038107,-517.59,0.00016787,3]
[382548490,1756665038117,-1000.86240959,0.00016796,2]
[382548492,1756665038127,-500.0,0.00016796,2]
[382548494,1756665038137,-500.0,0.00016797,2]
[382548496,1756665038146,-480.0,0.00016797,2]
[382548498,1756665038156,-480.0,0.00016797,2]
[382548500,1756665038166,-249.71944089,0.00016797,2]
[382548502,1756665038175,-480.0,0.00016797,2]
[382548504,1756665038185,-940.76,0.00016797,2]
[382548506,1756665038195,-480.0,0.00016797,2]
[382548508,1756665038205,-480.0,0.00016797,2]
[382548510,1756665038217,-480.0,0.00016797,2]
[382548512,1756665038226,-480.0,0.00016797,2]
[382548514,1756665038236,-598.03,0.00016797,2]
[382548516,1756665038245,-420.51214231,0.00016797,2]
[382548518,1756665038255,-480.0,0.00016797,2]
[382548520,1756665038265,-480.0,0.00016797,2]
[382548522,1756665038274,-496.54,0.00016797,2]
[382548524,1756665038283,-480.0,0.00016797,2]
[382548526,1756665038293,-1000.0,0.00016797,2]
[382548528,1756665038303,-480.0,0.00016797,2]
[382548530,1756665038311,-480.0,0.00016797,2]
[382548532,1756665038321,-480.0,0.00016797,2]
[382548534,1756665038330,-480.0,0.00016797,2]
[382548536,1756665038342,-480.0,0.00016797,2]
[382548538,1756665038351,-480.0,0.00016797,2]
[382548540,1756665038360,-480.0,0.00016797,2]
[382548542,1756665038369,-480.0,0.00016797,2]
[382548544,1756665038378,-500.0,0.00016797,2]
[382548546,1756665038388,-500.0,0.00016797,2]
[382548548,1756665038398,-480.0,0.00016797,2]
[382548550,1756665038407,-480.0,0.00016797,2]
[382548552,1756665038416,-480.0,0.00016797,2]
[382548554,1756665038426,-480.0,0.00016797,2]
[382548556,1756665038435,-480.0,0.00016797,2]
[382548558,1756665038444,-480.0,0.00016797,2]
[382548560,1756665038455,-480.0,0.00016797,2]
[382548562,1756665038466,-480.0,0.00016797,2]
[382548564,1756665038475,-480.0,0.00016797,2]
[382548566,1756665038484,-198.85582042,0.00016797,2]
[382548568,1756665038494,-480.0,0.00016797,2]
[382548570,1756665038503,-480.0,0.00016797,2]
[382548572,1756665038512,-480.0,0.00016797,2]
[382548574,1756665038521,-480.0,0.00016797,2]
[382548576,1756665038533,-480.0,0.00016797,2]
[382548578,1756665038542,-480.0,0.00016797,2]
[382548580,1756665038552,-480.0,0.00016797,2]
[382548582,1756665038563,-480.0,0.00016797,2]
[382548584,1756665038572,-481.78518685,0.00016797,2]
[382548586,1756665038581,-480.0,0.00016797,2]
[382548587,1756665038591,-1015.25,0.00016797,2]
[382548589,1756665038600,-480.0,0.00016797,2]
[382548591,1756665038611,-480.0,0.00016797,2]
[382548593,1756665038621,-480.0,0.00016797,2]
[382548595,1756665038631,-480.0,0.00016797,2]
[382548597,1756665038640,-480.0,0.00016797,2]
[382548599,1756665038650,-849.72,0.00016797,2]
[382548601,1756665038659,-480.0,0.00016797,2]
[382548603,1756665038669,-480.0,0.00016797,2]
[382548605,1756665038679,-480.0,0.00016797,2]
[382548607,1756665038688,-480.0,0.00016797,2]
[382548609,1756665038698,-727.84,0.00016797,2]
[382548611,1756665038708,-480.0,0.00016797,2]
[382548613,1756665038719,-974.17,0.00016797,2]
[382548615,1756665038728,-480.0,0.00016797,2]
[382548617,1756665038745,-480.0,0.00016797,2]
[382548619,1756665038755,-503.27,0.00016797,2]
[382548621,1756665038764,-480.0,0.00016797,2]
[382548623,1756665038775,-480.0,0.00016797,2]
[382548625,1756665038784,-480.0,0.00016797,2]
[382548627,1756665038793,-480.0,0.00016797,2]
[382548629,1756665038803,-480.0,0.00016797,2]
[382548631,1756665038813,-480.0,0.00016797,2]
[382548632,1756665038822,-480.0,0.00016797,2]
[382548633,1756665038831,-480.0,0.00016797,2]
[382548634,1756665038841,-725.04,0.00016797,2]
[382548635,1756665038850,-1120.35,0.00016797,2]
[382548636,1756665038859,-561.68,0.00016797,2]
[382548637,1756665038868,-581.32,0.00016797,2]
[382548638,1756665038878,-964.97,0.00016797,2]
[382548639,1756665038887,-480.0,0.00016797,2]
[382548640,1756665038897,-480.0,0.00016797,2]
[382548641,1756665038906,-480.0,0.00016797,2]
[382548642,1756665038916,-480.0,0.00016797,2]
[382548643,1756665038925,-480.0,0.00016797,2]
[382548644,1756665038936,-480.0,0.00016797,2]
[382548645,1756665038946,-480.0,0.00016797,2]
[382548646,1756665038956,-480.0,0.00016797,2]
[382548647,1756665038966,-381.87211716,0.00016797,2]
[382548648,1756665038975,-480.0,0.00016797,2]
[382548649,1756665038984,-480.0,0.00016797,2]
[382548650,1756665038993,-881.38,0.00016797,2]
[382548651,1756665039003,-480.0,0.00016797,2]
[382548652,1756665039012,-480.0,0.00016797,2]
[382548653,1756665039023,-480.0,0.00016797,2]
[382548654,1756665039033,-1071.76,0.00016797,2]
[382548655,1756665039043,-480.0,0.00016797,2]
[382548656,1756665039053,-480.0,0.00016797,2]
[382548657,1756665039062,-524.12,0.00016797,2]
[382548658,1756665039072,-480.0,0.00016797,2]
[382548659,1756665039081,-956.29,0.00016797,2]
[382548660,1756665039090,-480.0,0.00016797,2]
[382548661,1756665039100,-480.0,0.00016797,2]
[382548662,1756665039110,-480.0,0.00016797,2]
[382548663,1756665039119,-542.85,0.00016797,2]
[382548664,1756665039129,-480.0,0.00016797,2]
[382548665,1756665039139,-480.0,0.00016797,2]
[382548666,1756665039149,-480.0,0.00016797,2]
[382548667,1756665039158,-1019.51,0.00016797,2]
[382548668,1756665039168,-480.0,0.00016797,2]
[382548669,1756665039178,-480.0,0.00016797,2]
[382548670,1756665039187,-480.0,0.00016797,2]
[382548671,1756665039197,-480.0,0.00016797,2]
[382548672,1756665039206,-519.38947215,0.00016797,2]
[382548673,1756665039217,-480.0,0.00016797,2]
[382548674,1756665039226,-679.91,0.00016797,2]
[382548675,1756665039235,-480.0,0.00016797,2]
[382548676,1756665039245,-480.0,0.00016797,2]
[382548677,1756665039254,-480.0,0.00016797,2]
[382548678,1756665039263,-480.0,0.00016797,2]
[382548679,1756665039272,-609.95,0.00016797,2]
[382548680,1756665039281,-568.92,0.00016797,2]
[382548681,1756665039292,-480.0,0.00016797,2]
[382548682,1756665039302,-618.42,0.00016797,2]
[382548683,1756665039311,-844.75,0.00016797,2]
[382548684,1756665039322,-480.0,0.00016797,2]
[382548685,1756665039331,-480.0,0.00016797,2]
[382548686,1756665039341,-480.0,0.00016797,2]
[382548687,1756665039351,-891.5,0.00016797,2]
[382548688,1756665039360,-480.0,0.00016797,2]
[382548689,1756665039369,-589.3,0.00016797,2]
[382548690,1756665039378,-480.0,0.00016797,2]
[382548691,1756665039389,-480.0,0.00016797,2]
[382548692,1756665039399,-480.0,0.00016797,2]
[382548693,1756665039408,-480.0,0.00016797,2]
[382548694,1756665039419,-480.0,0.00016797,2]
[382548695,1756665039429,-539.56,0.00016797,2]
[382548696,1756665039438,-480.0,0.00016797,2]
[382548697,1756665039448,-480.0,0.00016797,2]
[382548698,1756665039460,-949.6,0.00016797,2]
[382548699,1756665039470,-480.0,0.00016797,2]
[382548700,1756665039479,-794.6,0.00016797,2]
[382548701,1756665039489,-801.11,0.00016797,2]
[382548702,1756665039500,-864.22,0.00016797,2]
[382548703,1756665039511,-480.0,0.00016797,2]
[382548704,1756665039523,-480.0,0.00016797,2]
[382548705,1756665039534,-480.0,0.00016797,2]
[382548706,1756665039544,-530.66,0.00016797,2]
[382548707,1756665039553,-480.0,0.00016797,2]
[382548708,1756665039563,-480.0,0.00016797,2]
[382548709,1756665039572,-1076.94,0.00016797,2]
[382548710,1756665039581,-480.0,0.00016797,2]
[382548711,1756665039591,-480.0,0.00016797,2]
[382548712,1756665039600,-743.37,0.00016797,2]
[382548713,1756665039609,-480.0,0.00016797,2]
[382548714,1756665039619,-480.0,0.00016797,2]
[382548715,1756665039628,-480.0,0.00016797,2]
[382548716,1756665039637,-480.0,0.00016797,2]
[382548717,1756665039646,-480.0,0.00016797,2]
[382548718,1756665039655,-480.0,0.00016797,2]
[382548719,1756665039665,-1577.6,0.00016797,2]
[382548720,1756665039674,-480.0,0.00016797,2]
[382548721,1756665039684,-480.0,0.00016797,2]
[382548722,1756665039693,-480.0,0.00016797,2]
[382548723,1756665039703,-480.0,0.00016797,2]
[382548724,1756665039713,-480.0,0.00016797,2]
[382548725,1756665039723,-887.65,0.00016797,2]
[382548726,1756665039734,-480.0,0.00016797,2]
[382548727,1756665039744,-500.0,0.00016797,2]
[382548728,1756665039755,-480.0,0.00016797,2]
[382548729,1756665039765,-749.36,0.00016797,2]
[382548730,1756665039775,-480.0,0.00016797,2]
[382548731,1756665039785,-480.0,0.00016797,2]
[382548732,1756665039795,-480.0,0.00016797,2]
[382548733,1756665039805,-480.0,0.00016797,2]
[382548734,1756665039815,-480.0,0.00016797,2]
[382548735,1756665039825,-480.0,0.00016797,2]
[382548736,1756665039834,-545.24,0.00016797,2]
[382548737,1756665039844,-1587.3,0.00016797,2]
[382548738,1756665039854,-480.0,0.00016797,2]
[382548739,1756665039863,-480.0,0.00016797,2]
[382548740,1756665039873,-612.44,0.00016797,2]
[382548741,1756665039882,-971.15,0.00016797,2]
[382548742,1756665039892,-480.0,0.00016797,2]
[382548743,1756665039903,-705.26,0.00016797,2]
[382548744,1756665039912,-480.0,0.00016797,2]
[382548745,1756665039921,-480.0,0.00016797,2]
[382548747,1756665039930,-480.0,0.00016797,2]
[382548749,1756665039939,-557.64,0.00016797,2]
[382548751,1756665039949,-480.0,0.00016797,2]
[382548753,1756665039958,-480.0,0.00016797,2]
[382548755,1756665039968,-642.29,0.00016797,2]
[382548757,1756665039977,-696.29,0.00016797,2]
[382548759,1756665039986,-480.0,0.00016797,2]
[382548761,1756665039996,-480.0,0.00016797,2]
[382548763,1756665040006,-480.0,0.00016797,2]
[382548765,1756665040015,-489.7,0.00016797,2]
[382548767,1756665040025,-543.00059376,0.00016797,2]
[382548769,1756665040034,-480.0,0.00016797,2]
[382548771,1756665040043,-480.0,0.00016797,2]
[382548774,1756665040053,-480.0,0.00016797,2]
[382548776,1756665040063,-480.0,0.00016797,2]
[382548778,1756665040072,-480.0,0.00016797,2]
[382548780,1756665040082,-480.0,0.00016797,2]
[382548782,1756665040091,-480.0,0.00016797,2]
[382548784,1756665040100,-480.0,0.00016797,2]
[382548786,1756665040109,-480.0,0.00016797,2]
[382548788,1756665040118,-524.31,0.00016797,2]
[382548789,1756665040127,-480.0,0.00016797,2]
[382548791,1756665040137,-480.0,0.00016797,2]
[382548793,1756665040146,-480.0,0.00016797,2]
[382548795,1756665040155,-480.0,0.00016797,2]
[382548797,1756665040164,-184.0,0.0001681,2]
[382548799,1756665040173,-1946.42667831,0.00016834,2]
[382548801,1756665040183,-556.60691675,0.0001687,2]
[382548803,1756665040192,-1089.62,0.00016871,2]
[382548805,1756665040201,-480.0,0.00016871,2]
[382548807,1756665040210,-1896.44,0.00016871,2]
[382548809,1756665040220,-936.22,0.00016871,2]
[382548811,1756665040229,-594.85,0.00016871,2]
[382548813,1756665040238,-1209.37,0.00016871,2]
[382548815,1756665040248,-561.45,0.00016871,2]
[382548817,1756665040257,-480.0,0.00016872,2]
[382548819,1756665040267,-480.0,0.00016872,2]
[382548821,1756665040276,-480.0,0.00016872,2]
[382548823,1756665040285,-480.0,0.00016872,2]
[382548825,1756665040294,-480.0,0.00016872,2]
[382548828,1756665040304,-480.88289953,0.00016872,2]
[382548829,1756665040313,-571.37,0.00016872,2]
[382548831,1756665040323,-480.66036303,0.00016872,2]
[382548834,1756665040332,-480.0,0.00016872,2]
[382548836,1756665040342,-1181.63,0.00016872,2]
[382548838,1756665040351,-516.06,0.00016872,2]
[382548840,1756665040360,-518.21017361,0.00016872,2]
[382548841,1756665040369,-567.37918417,0.00016872,2]
[382548843,1756665040378,-480.0,0.00016872,2]
[382548845,1756665040387,-480.0,0.00016872,2]
[382548847,1756665040397,-692.46,0.00016872,2]
[382548849,1756665040406,-480.0,0.00016872,2]
[382548851,1756665040416,-480.0,0.00016872,2]
[382548853,1756665040426,-529.25,0.00016872,2]
[382548855,1756665040436,-480.0,0.00016872,2]
[382548857,1756665040446,-701.0,0.00016872,2]
[382548860,1756665040456,-480.0,0.00016872,2]
[382548862,1756665040470,-890.51,0.00016872,2]
[382548864,1756665040480,-480.0,0.00016872,2]
[382548866,1756665040490,-480.0,0.00016872,2]
[382548868,1756665040500,-532.81,0.00016872,2]
[382548870,1756665040509,-480.0,0.00016872,2]
[382548872,1756665040518,-903.52,0.00016872,2]
[382548874,1756665040528,-480.0,0.00016872,2]
[382548876,1756665040537,-480.0,0.00016872,2]
[382548878,1756665040547,-480.0,0.00016872,2]
[382548880,1756665040556,-480.0,0.00016872,2]
[382548882,1756665040566,-480.0,0.00016872,2]
[382548884,1756665040575,-481.32029746,0.00016872,2]
[382548886,1756665040585,-480.0,0.00016872,2]
[382548888,1756665040594,-480.0,0.00016872,2]
[382548890,1756665040604,-480.0,0.00016872,2]
[382548892,1756665040614,-480.0,0.00016872,2]
[382548894,1756665040624,-485.49,0.00016872,2]
[382548896,1756665040634,-487.56151785,0.00016872,2]
[382548898,1756665040643,-595.46,0.00016872,2]
[382548900,1756665040652,-480.0,0.00016872,2]
[382548902,1756665040661,-480.0,0.00016872,2]
[382548904,1756665040671,-480.0,0.00016872,2]
[382548906,1756665040681,-184.0,0.00016881,2]
[382548908,1756665040690,-184.0,0.00016926,2]
[382548910,1756665040699,-184.0,0.00016932,2]
[382548911,1756665040709,-184.0,0.00016949,2]
[382548913,1756665040719,-681.1,0.0001697,2]
[382548915,1756665040729,-480.0,0.0001697,2]
[382548917,1756665040742,-480.0,0.0001697,2]
[382548919,1756665040752,-480.0,0.0001697,2]
[382548921,1756665040761,-1904.78,0.0001697,2]
[382548923,1756665040771,-544.56,0.0001697,2]
[382548925,1756665040780,-480.0,0.0001697,2]
[382548927,1756665040790,-1162.75,0.0001697,2]
[382548929,1756665040800,-480.0,0.0001697,2]
[382548931,1756665040810,-631.41,0.0001697,2]
[382548933,1756665040820,-534.55,0.0001697,2]
[382548935,1756665040830,-480.0,0.0001697,2]
[382548937,1756665040840,-480.0,0.0001697,2]
[382548940,1756665040850,-578.72,0.0001697,2]
[382548941,1756665040860,-887.77,0.00016971,2]
[382548943,1756665040870,-480.0,0.00016971,2]
[382548945,1756665040879,-480.0,0.00016971,2]
[382548947,1756665040889,-480.0,0.00016971,2]
[382548950,1756665040899,-480.0,0.00016971,2]
[382548952,1756665040908,-499.45047624,0.00016971,2]
[382548954,1756665040917,-480.0,0.00016971,2]
[382548955,1756665040927,-480.0,0.00016971,2]
[382548958,1756665040936,-480.0,0.00016971,2]
[382548959,1756665040946,-480.0,0.00016971,2]
[382548962,1756665040955,-480.0,0.00016971,2]
[382548964,1756665040966,-480.0,0.00016971,2]
[382548966,1756665040976,-480.0,0.00016971,2]
[382548967,1756665040985,-480.0,0.00016971,2]
[382548968,1756665040994,-480.0,0.00016971,2]
[382548969,1756665041004,-480.0,0.00016971,2]
[382548970,1756665041013,-480.0,0.00016971,2]
[382548971,1756665041022,-480.0,0.00016971,2]
[382548972,1756665041032,-618.67,0.00016971,2]
[382548973,1756665041041,-614.59,0.00016971,2]
[382548974,1756665041051,-480.0,0.00016971,2]
[382548975,1756665041060,-630.73,0.00016971,2]
[382548976,1756665041070,-480.0,0.00016971,2]
[382548977,1756665041079,-480.0,0.00016971,2]
[382548978,1756665041089,-480.0,0.00016971,2]
[382548979,1756665041098,-480.0,0.00016971,2]
[382548980,1756665041107,-480.0,0.00016971,2]
[382548981,1756665041116,-480.0,0.00016971,2]
[382548982,1756665041125,-480.0,0.00016971,2]
[382548983,1756665041135,-480.0,0.00016971,2]
[382548984,1756665041144,-480.0,0.00016971,2]
[382548985,1756665041155,-480.0,0.00016971,2]
[382548986,1756665041164,-480.0,0.00016971,2]
[382548987,1756665041173,-480.0,0.00016971,2]
[382548988,1756665041183,-480.0,0.00016971,2]
[382548989,1756665041193,-758.9,0.00016971,2]
[382548990,1756665041202,-480.0,0.00016971,2]
[382548991,1756665041211,-480.0,0.00016971,2]
[382548992,1756665041221,-480.0,0.00016971,2]
[382548993,1756665041230,-480.0,0.00016971,2]
[382548994,1756665041239,-480.0,0.00016971,2]
[382548995,1756665041248,-480.0,0.00016971,2]
[382548996,1756665041257,-769.99,0.00016971,2]
[382548998,1756665041267,-909.08,0.00016971,2]
[382548999,1756665041276,-480.0,0.00016971,2]
[382549000,1756665041287,-480.0,0.00016971,2]
[382549002,1756665041303,-737.14,0.00016971,2]
[382549004,1756665041313,-480.0,0.00016971,2]
[382549006,1756665041323,-480.0,0.00016971,2]
[382549008,1756665041332,-480.0,0.00016971,2]
[382549010,1756665041341,-480.0,0.00016971,2]
[382549012,1756665041351,-480.0,0.00016971,2]
[382549014,1756665041360,-480.0,0.00016971,2]
[382549016,1756665041371,-480.0,0.00016971,2]
[382549018,1756665041380,-480.0,0.00016971,2]
[382549020,1756665041390,-480.0,0.00016971,2]
[382549022,1756665041399,-480.0,0.00016971,2]
[382549024,1756665041409,-480.0,0.00016971,2]
[382549026,1756665041418,-480.0,0.00016971,2]
[382549028,1756665041428,-480.0,0.00016971,2]
[382549030,1756665041437,-741.09,0.00016971,2]
[382549032,1756665041446,-568.74,0.00016971,2]
[382549034,1756665041455,-706.76,0.00016971,2]
[382549036,1756665041465,-1080.25,0.00016971,2]
[382549038,1756665041475,-3191.46,0.00016971,2]
[382549040,1756665041486,-538.41,0.00016971,2]
[382549042,1756665041503,-480.0,0.00016971,2]
[382549044,1756665041512,-480.0,0.00016971,2]
[382549046,1756665041521,-1541.27,0.00016971,2]
[382549048,1756665041532,-1197.06,0.00016971,2]
[382549050,1756665041542,-480.0,0.00016971,2]
[382549052,1756665041552,-480.0,0.00016971,2]
[382549054,1756665041561,-480.0,0.00016971,2]
[382549056,1756665041571,-480.0,0.00016971,2]
[382549058,1756665041581,-480.0,0.00016971,2]
[382549060,1756665041591,-480.0,0.00016971,2]
[382549062,1756665041602,-759.6,0.00016971,2]
[382549064,1756665041612,-480.0,0.00016971,2]
[382549066,1756665041621,-480.0,0.00016971,2]
[382549068,1756665041630,-620.19,0.00016971,2]
[382549070,1756665041640,-889.86,0.00016971,2]
[382549072,1756665041649,-612.73,0.00016971,2]
[382549074,1756665041658,-480.0,0.00016971,2]
[382549076,1756665041669,-804.52,0.00016971,2]
[382549078,1756665041679,-663.05,0.00016971,2]
[382549080,1756665041689,-924.02,0.00016971,2]
[382549082,1756665041699,-480.0,0.00016971,2]
[382549084,1756665041708,-480.0,0.00016971,2]
[382549086,1756665041718,-480.0,0.00016971,2]
[382549088,1756665041727,-5636.05,0.00016971,2]
[382549090,1756665041739,-1946.42667831,0.00016971,2]
[382549092,1756665041748,-880.14,0.00016971,2]
[382549094,1756665041758,-4629.05,0.00016971,2]
[382549096,1756665041767,-480.0,0.00016971,2]
[382549098,1756665041776,-480.0,0.00016971,2]
[382549100,1756665041786,-926.92,0.00016971,2]
[382549102,1756665041796,-480.0,0.00016971,2]
[382549104,1756665041805,-481.64,0.00016971,2]
[382549106,1756665041815,-1168.56,0.00016971,2]
[382549108,1756665041826,-816.33,0.00016971,2]
[382549111,1756665041836,-2313.67,0.00016971,2]
[382549113,1756665041846,-1205.01,0.00016971,2]
[382549114,1756665041856,-480.6,0.00016971,2]
[382549116,1756665041866,-555.86,0.00016971,2]
[382549118,1756665041875,-480.0,0.00016971,2]
[382549120,1756665041885,-480.0,0.00016971,2]
[382549122,1756665041900,-480.0,0.00016971,2]
[382549124,1756665041909,-480.0,0.00016971,2]
[382549126,1756665041918,-480.0,0.00016971,2]
[382549128,1756665041928,-480.0,0.00016971,2]
[382549130,1756665041937,-480.0,0.00016971,2]
[382549132,1756665041947,-835.55,0.00016971,2]
[382549134,1756665041958,-480.0,0.00016971,2]
[382549136,1756665041969,-483.83681509,0.00016971,2]
[382549157,1756665042149,-686.18,0.00016971,2]
[382549159,1756665042159,-480.0,0.00016971,2]
[382549161,1756665042169,-1193.78,0.00016971,2]
[382549163,1756665042179,-480.0,0.00016971,2]
[382549165,1756665042189,-480.0,0.00016971,2]
[382549167,1756665042199,-480.0,0.00016971,2]
[382549169,1756665042208,-870.94,0.00016971,2]
[382549171,1756665042219,-4223.74,0.00016971,2]
[382549173,1756665042229,-480.0,0.00016971,2]
[382549175,1756665042239,-952.78,0.00016971,2]
[382549177,1756665042249,-480.0,0.00016971,2]
[382549179,1756665042259,-879.28,0.00016971,2]
[382549181,1756665042268,-480.0,0.00016971,2]
[382549183,1756665042278,-480.0,0.00016971,2]
[382549185,1756665042288,-1698.61,0.00016971,2]
[382549187,1756665042297,-1058.9,0.00016971,2]
[382549189,1756665042307,-480.0,0.00016971,2]